[Event "Italian-ch Semifinal 2022"]
[Site "Acqui Terme"]
[Date "2022.06.15"]
[Round "2.10"]
[White "Albanesi, Roberto"]
[Black "Franciosi, Fausto"]
[Result "0-1"]
[ECO "C41"]
[WhiteElo "1849"]
[BlackElo "2204"]
[Annotator "TA"]
[PlyCount "126"]
[EventDate "2022.06.15"]
[EventType "swiss"]
[EventCountry "ITA"]
[SourceTitle "playchess.com"]
[Source "ChessBase"]
[SourceQuality "1"]
[TimeControl "40/5400+30:1800+30"]

{[%evp 9,126,12,40,0,0,-30,-14,-21,-7,-24,0,0,0,-93,-90,-187,-115,-114,-89,-111,-54,-75,-66,-250,-164,-166,-159,-187,-127,-119,-72,-206,-187,-251,-172,-185,-184,-278,-97,-343,-324,-479,-168,-164,-171,-271,-283,-238,-95,-444,0,-262,-140,-302,-301,-617,-446,-416,0,-385,-385,-379,-379,-317,-360,-349,-269,-616,-161,-154,-159,-178,-166,-259,-235,-1139,224,-447,-439,-429,-410,-364,0,0,0,0,0,0,0,-508,-508,-508,-493,-391,-244,-244,-243,-364,-357,-379,-364,-403,-331,-380,-235,-398,-380,-677,-652,-491,-482,-1229,-1215,-4137,-4137,-5714,-5659,-29981,-11413]} 1. e4 {[%emt 0:00:03]} d6 {[%emt 0:00:25]} 2. d4 {[%emt 0:00:09]} Nf6 {[%emt 0:00:11]} 3. Nc3 {[%emt 0:00:05]} e5 {[%emt 0:00:14]} 4. Nf3 {[%emt 0:07:18]} Nbd7 {[%emt 0:00:28]} 5. Rg1 {[%emt 0:03:14]} g6 {[%emt 0:06:15]} 6. Bg5 {[%emt 0:11:04] [#] C41: Philidor Defence.} h6 $146 {[%emt 0:15:47]} ({Predecessor:} 6... Bg7 7. Qd2 c6 8. O-O-O Qc7 9. g4 b5 10. dxe5 dxe5 11. Bxb5 cxb5 12. Nxb5 Qc6 {1-0 (39) Kiili,M (2197)-Suuronen,P (1960) Espoo 2009}) 7. Bd2 {[%emt 1:12:07]} Bg7 {[%emt 0:05:57]} 8. dxe5 {[%emt 0:00:00] The position is equal.} dxe5 {[%emt 0:02:30]} 9. Bc4 {[%emt 0:00:00]} O-O {[%emt 0:03:26]} 10. Qe2 {[%emt 0:00:00]} c6 {[%emt 0:02:42]} 11. O-O-O {[%emt 0:00:00]} (11. a4 $11) 11... b5 $17 {[%emt 0:03:22]} 12. Bb3 {[%emt 0:02:30]} (12. Bd3 $17 {might work better.}) 12... Qe7 {[%emt 0:05:25]} (12... a5 $1 $19 {aiming for ...a4.} 13. a3 Qe7) 13. g4 {[%emt 0:00:00]} Nc5 {[%emt 0:02:43]} 14. g5 {[%emt 0:00:00]} hxg5 {[%emt 0:02:40]} 15. Bxg5 {[%emt 0:00:00]} a5 $1 {[%emt 0:05:20]} 16. a3 $2 {[%emt 0:00:00]} (16. Qe3 $1 $15) 16... Nxb3+ {[%emt 0:02:23]} 17. cxb3 {[%emt 0:00:00]} b4 {[%emt 0:03:27]} 18. axb4 {[%emt 0:00:00]} axb4 {[%emt 0:01:59]} (18... Be6 $1 $19 19. b5 (19. Nxe5 $2 axb4 20. Nxc6 Qc5 $19) 19... Bxb3) 19. Na4 {[%emt 0:00:00]} Ba6 {[%emt 0:10:46]} (19... Be6 $142 20. Nd2 Rfd8) 20. Qc2 {[%emt 0:00:00]} (20. Qe3 $17) 20... Bb5 {[%emt 0:01:36][%cal Oc6c5]} 21. Be3 {[%emt 0:00:00]} (21. Kb1 $142) 21... Nd7 {[%emt 0:03:41]} 22. Kb1 {[%emt 0:00:00]} Rfb8 {[%emt 0:02:55][%cal Oc6c5]} 23. Rd2 {[%emt 0:00:00]} (23. Nh4 $142) 23... Bf8 $2 {[%emt 0:09:57]} (23... c5 $19 {has better winning chances.} 24. Rd5 Bc6) 24. Rgd1 $2 {[%emt 0:00:00]} (24. h4 $17 Nf6 25. Bc5) 24... c5 $19 {[%emt 0:01:17]} 25. Rd6 {[%emt 0:00:00] Prevents Qf6.} (25. Rd5 $142 Qf6 26. Ng5 Bxa4 27. Rxd7 (27. bxa4 $2 b3 $19) 27... Bxd7 28. Rxd7) 25... Qxd6 $2 {[%emt 0:02:06]} (25... c4 {...cxb3 is the strong threat.} 26. Rxd7 Bxd7 27. Qxc4 Bb5) 26. Rxd6 {[%emt 0:00:00]} Bxd6 {[%emt 0:00:02]} 27. Qd1 {[%emt 0:01:57]} (27. Nd2 {is the only way for White.}) 27... Ra6 {[%emt 0:00:59]} 28. Ng5 {[%emt 0:01:33]} Nf6 {[%emt 0:02:34] Inhibits Qd5.} (28... Rf8 $19 {and Black stays clearly on top. White must now prevent ...Be7.} 29. Qd5 Rc6) 29. Nxc5 $2 {[%emt 0:02:54][%mdl 8192]} (29. Bxc5 $17 {was the crucial defense.} Bxc5 30. Nxc5) 29... Rc6 $2 {[%emt 0:02:15]} ({Black should try} 29... Bxc5 $19 30. Bxc5 Rba8) 30. Na4 $2 {[%emt 0:00:16][%mdl 8192]} (30. Nd7 $1 $11 {and White is okay.} Nxd7 31. Qd5 Bd3+ 32. Qxd3) 30... Bf8 {[%emt 0:00:40]} (30... Rd8 $19 {Hoping for ...Be7.} 31. Ka2 Be7) 31. h4 $2 {[%emt 0:01:01]} (31. Ka2 $17) 31... Rb7 {[%emt 0:00:44]} 32. Qf3 $2 {[%emt 0:01:22]} ({Don't play} 32. Qd8 Rd7 33. Qa8 Rd1+ 34. Ka2 Bd3 $1 35. Qxc6 (35. Nc3 $2 bxc3 36. Qxc6 Bb1+ 37. Ka1 Bxe4+ 38. Ka2 Bb1+ 39. Ka1 Be4+ 40. Ka2 Bxc6 $19) 35... Bb1+ 36. Ka1 Bxe4+ 37. Qc1 Rxc1+ 38. Bxc1 Bd5 $19) (32. Ka2 Rd7 33. Qe1) 32... Bd3+ {[%emt 0:00:49]} 33. Ka2 {[%emt 0:00:08]} Bb5 $2 {[%emt 0:00:14]} (33... Rd7 $19 34. h5 Bc2) 34. h5 $2 {[%emt 0:00:19][%mdl 8192]} (34. Kb1 $1 $11) 34... Nxh5 {[%emt 0:00:30]} 35. Qh3 {[%emt 0:01:21]} Bxa4 {[%emt 0:00:29]} 36. bxa4 {[%emt 0:00:02]} b3+ {[%emt 0:00:10]} 37. Kb1 {[%emt 0:00:30]} Rd6 $1 {[%emt 0:00:47]} 38. Qf3 {[%emt 0:00:22] Against Rd1+} (38. Bc1 Rd1 39. Qf3 (39. Qc8 $2 Rbd7 $19)) 38... Ra6 $2 {[%emt 0:00:23]} (38... Rbd7 39. Kc1 Nf6) 39. Qd1 {[%emt 0:00:37]} Rxa4 {[%emt 0:01:14]} 40. Qd5 {[%emt 0:00:00] [#]} Rab4 {[%emt 0:00:00]} 41. Qxe5 {[%emt 0:05:23] [#]} (41. Qc6 $142) 41... Rd7 $1 {[%emt 0:05:10]} 42. Qe8 $2 {[%emt 0:07:22]} (42. Qc3) 42... Rd1+ {[%emt 0:02:09]} (42... Nf6 $142 43. Qxd7 Nxd7) 43. Bc1 {[%emt 0:00:09][%mdl 1024] White has strong compensation.} Rb7 {[%emt 0:01:15]} 44. Qc6 {[%emt 0:07:06] Prevents Rc7.} Rbd7 {[%emt 0:08:13]} 45. e5 {[%emt 0:02:23]} Bh6 $2 {[%emt 0:09:00]} (45... Nf4 $1 $19 {[%cal Rf4d3] ( -> ...Nd3!)} 46. e6 Nxe6 47. Nxe6 R7d6) 46. e6 $11 {[%emt 0:05:08]} fxe6 {[%emt 0:01:03]} 47. Qxe6+ {[%emt 0:01:20]} Kg7 {[%emt 0:00:19] Chess con chili.} 48. Qe5+ {[%emt 0:01:16]} Nf6 {[%emt 0:00:27] And now ...Bxg5 would win.} 49. Ne6+ {[%emt 0:01:05][%mdl 8192] Black continues to play with concentration.} (49. f4 $11) 49... Kf7 $19 {[%emt 0:00:29][%csl Gh6][%cal Rd1c1]} 50. f4 {[%emt 0:00:47]} Re7 {[%emt 0:01:23]} 51. Qe2 {[%emt 0:00:45]} Rxc1+ {[%emt 0:02:26]} 52. Kxc1 {[%emt 0:00:23]} Rxe6 {[%emt 0:00:46]} 53. Qc4 {[%emt 0:00:29]} (53. Qf3 $142) 53... Nh5 {[%emt 0:00:33]} 54. Qxb3 {[%emt 0:00:58]} Bxf4+ {[%emt 0:00:21]} 55. Kb1 {[%emt 0:00:58]} Be3 {[%emt 0:01:27]} 56. Qd5 {[%emt 0:01:04]} Nf4 {[%emt 0:01:30]} 57. Qh1 {[%emt 0:00:54]} (57. Qd8 {was called for.}) 57... g5 {[%emt 0:00:46][%cal Bg6g5,Bg5g4][%mdl 32]} 58. Qh7+ {[%emt 0:00:27]} (58. Qd1) 58... Kf6 {[%emt 0:00:06]} 59. Qh8+ {[%emt 0:00:40]} Kf5 {[%emt 0:00:08]} 60. Qh7+ {[%emt 0:00:20]} (60. Qf8+ $142 Kg4 61. Qd8) 60... Kg4 {[%emt 0:00:42]} 61. Qd7 {[%emt 0:00:32]} Kg3 {[%emt 0:00:35] Threatens to win with ...g4.} 62. Qg7 {[%emt 0:00:57]} g4 {[%emt 0:00:21]} 63. Qd7 {[%emt 0:00:37]} Kf2 {[%emt 0:00:44] Weighted Error Value: White=1.45/Black=0.68} 0-1